[Event "Early-Titled-Tuesday-Blitz-July-09-2024"]
[Site "Chess.com"]
[Date "2024.07.09"]
[Round "4"]
[White "Barmen_EV"]
[Black "mishanick"]
[Result "0-1"]
[WhiteElo "2539"]
[BlackElo "3085"]
[TimeControl "180+1"]
[EndTime "8:39:08 PDT"]
[Termination "mishanick won by resignation"]

1. e4 {[%clk 0:03:00.9]} 1... e6 {[%clk 0:02:59]} 2. d4 {[%clk 0:03:00.4]} 2...
d5 {[%clk 0:02:59.7]} 3. Nd2 {[%clk 0:03:00.9]} 3... dxe4 {[%clk 0:02:58.6]} 4.
Nxe4 {[%clk 0:03:01.8]} 4... Bd7 {[%clk 0:02:59]} 5. Nf3 {[%clk 0:02:55.1]} 5...
Bc6 {[%clk 0:02:59.6]} 6. Bd3 {[%clk 0:02:55.1]} 6... Nd7 {[%clk 0:02:59.4]} 7.
O-O {[%clk 0:02:52]} 7... Ngf6 {[%clk 0:02:59.9]} 8. Re1 {[%clk 0:02:38.1]} 8...
Nxe4 {[%clk 0:02:59]} 9. Bxe4 {[%clk 0:02:39]} 9... Bxe4 {[%clk 0:02:59.5]} 10.
Rxe4 {[%clk 0:02:39.9]} 10... Be7 {[%clk 0:02:59.1]} 11. c3 {[%clk 0:02:30.5]}
11... O-O {[%clk 0:02:55.9]} 12. Rg4 {[%clk 0:02:18.5]} 12... Nf6 {[%clk
0:02:56]} 13. Rg3 {[%clk 0:02:17.7]} 13... Ne4 {[%clk 0:02:53.4]} 14. Rh3 {[%clk
0:02:11.7]} 14... Qd5 {[%clk 0:02:53]} 15. Ne5 {[%clk 0:02:02.7]} 15... g6
{[%clk 0:02:38.8]} 16. Qg4 {[%clk 0:01:18.6]} 16... f5 {[%clk 0:02:36]} 17. Qe2
{[%clk 0:01:09.1]} 17... Bf6 {[%clk 0:02:35.9]} 18. Bf4 {[%clk 0:00:44]} 18...
c5 {[%clk 0:02:28.6]} 19. f3 {[%clk 0:00:39.9]} 19... cxd4 {[%clk 0:02:23.1]}
20. fxe4 {[%clk 0:00:35.7]} 20... fxe4 {[%clk 0:02:24]} 21. Ng4 {[%clk
0:00:23.4]} 21... Bg7 {[%clk 0:02:13.9]} 22. Bh6 {[%clk 0:00:22.9]} 22... d3
{[%clk 0:02:12.6]} 23. Qe3 {[%clk 0:00:22.8]} 23... Bxh6 {[%clk 0:01:56.8]} 24.
Qxh6 {[%clk 0:00:20.3]} 24... Qd7 {[%clk 0:01:53.7]} 25. Rd1 {[%clk 0:00:16.1]}
25... e5 {[%clk 0:01:30.8]} 26. Qg5 {[%clk 0:00:13.8]} 26... Qe6 {[%clk
0:01:23]} 27. Qh4 {[%clk 0:00:13.5]} 27... h5 {[%clk 0:01:18.3]} 28. Nf2 {[%clk
0:00:10.7]} 28... Rf4 {[%clk 0:01:16.4]} 29. Qg3 {[%clk 0:00:08.6]} 29... Raf8
{[%clk 0:01:15.3]} 30. Rd2 {[%clk 0:00:05.7]} 30... h4 {[%clk 0:00:59.1]} 31.
Qe3 {[%clk 0:00:06]} 31... g5 {[%clk 0:00:57.2]} 32. c4 {[%clk 0:00:03.7]} 32...
Qxc4 {[%clk 0:00:52.3]} 33. g3 {[%clk 0:00:03.2]} 33... Qc1+ {[%clk 0:00:50.3]}
34. Kg2 {[%clk 0:00:03.6]} 34... Rxf2+ {[%clk 0:00:50.1]} 35. Qxf2 {[%clk
0:00:03]} 35... Rxf2+ {[%clk 0:00:49.9]} 36. Rxf2 {[%clk 0:00:03.9]} 36... e3
{[%clk 0:00:50.3]} 37. Rf5 {[%clk 0:00:03.4]} 37... Qc2+ {[%clk 0:00:48]} 0-1

[Event "Early-Titled-Tuesday-Blitz-July-09-2024"]
[Site "Chess.com"]
[Date "2024.07.09"]
[Round "4"]
[White "GothamChess"]
[Black "Orest_Vovk"]
[Result "1-0"]
[WhiteElo "2757"]
[BlackElo "2537"]
[TimeControl "180+1"]
[EndTime "8:39:09 PDT"]
[Termination "GothamChess won by resignation"]

1. e4 {[%clk 0:02:57.9]} 1... g5 {[%clk 0:02:58.9]} 2. g3 {[%clk 0:02:50.9]}
2... g4 {[%clk 0:02:57.7]} 3. h3 {[%clk 0:02:50.2]} 3... d5 {[%clk 0:02:52.9]}
4. Bg2 {[%clk 0:02:42.9]} 4... dxe4 {[%clk 0:02:50.7]} 5. hxg4 {[%clk
0:02:42.7]} 5... Nf6 {[%clk 0:02:47.8]} 6. g5 {[%clk 0:02:40.7]} 6... Bg4 {[%clk
0:02:47.6]} 7. Ne2 {[%clk 0:02:38.3]} 7... Nd5 {[%clk 0:01:41.7]} 8. Bxe4 {[%clk
0:02:34]} 8... Nc6 {[%clk 0:01:38.5]} 9. d4 {[%clk 0:02:27.7]} 9... Bxe2 {[%clk
0:01:19.4]} 10. Kxe2 {[%clk 0:02:28.1]} 10... Bg7 {[%clk 0:01:14.1]} 11. c3
{[%clk 0:02:26]} 11... Qd7 {[%clk 0:01:09.5]} 12. Kf1 {[%clk 0:02:15.8]} 12...
O-O-O {[%clk 0:01:07.2]} 13. Qf3 {[%clk 0:02:15.6]} 13... e6 {[%clk 0:01:04.6]}
14. Rxh7 {[%clk 0:01:48.8]} 14... Rxh7 {[%clk 0:00:55.1]} 15. Bxh7 {[%clk
0:01:49.7]} 15... Rh8 {[%clk 0:00:38.4]} 16. Be4 {[%clk 0:01:48.4]} 16... Bxd4
{[%clk 0:00:22.4]} 17. cxd4 {[%clk 0:01:37.8]} 17... Nxd4 {[%clk 0:00:23.3]} 18.
Qd3 {[%clk 0:01:38.1]} 18... f5 {[%clk 0:00:17]} 19. Qxd4 {[%clk 0:01:31.9]}
19... Rh2 {[%clk 0:00:15.5]} 20. Bxd5 {[%clk 0:01:27.9]} 20... exd5 {[%clk
0:00:14.9]} 21. g6 {[%clk 0:01:00.9]} 21... Qe8 {[%clk 0:00:09.3]} 22. Kg1
{[%clk 0:00:54]} 22... Rh5 {[%clk 0:00:06.7]} 23. Be3 {[%clk 0:00:46.6]} 23...
Qxg6 {[%clk 0:00:06.5]} 24. Nd2 {[%clk 0:00:42]} 24... c6 {[%clk 0:00:05.3]} 25.
Nf3 {[%clk 0:00:39.2]} 25... Qh7 {[%clk 0:00:05]} 26. Nh4 {[%clk 0:00:37.9]}
26... Qg8 {[%clk 0:00:04]} 27. Re1 {[%clk 0:00:35.9]} 27... a6 {[%clk
0:00:02.7]} 28. Qa7 {[%clk 0:00:31.1]} 28... Rxh4 {[%clk 0:00:02.5]} 29. Qa8+
{[%clk 0:00:31.2]} 1-0

[Event "Early-Titled-Tuesday-Blitz-July-09-2024"]
[Site "Chess.com"]
[Date "2024.07.09"]
[Round "4"]
[White "Chessgod9oninsta"]
[Black "GMMikhailKazakov"]
[Result "1-0"]
[WhiteElo "2788"]
[BlackElo "2509"]
[TimeControl "180+1"]
[EndTime "8:39:09 PDT"]
[Termination "Chessgod9oninsta won on time"]

1. d4 {[%clk 0:03:00.9]} 1... Nf6 {[%clk 0:02:23.7]} 2. c4 {[%clk 0:03:01.1]}
2... g6 {[%clk 0:02:21.8]} 3. Nc3 {[%clk 0:03:00.9]} 3... d5 {[%clk 0:02:22]} 4.
cxd5 {[%clk 0:03:01.8]} 4... Nxd5 {[%clk 0:02:22.3]} 5. e4 {[%clk 0:03:02.5]}
5... Nxc3 {[%clk 0:02:22.4]} 6. bxc3 {[%clk 0:03:03.4]} 6... Bg7 {[%clk
0:02:22.9]} 7. Nf3 {[%clk 0:03:02.6]} 7... O-O {[%clk 0:02:22.3]} 8. Be2 {[%clk
0:03:02.6]} 8... c5 {[%clk 0:02:22.6]} 9. O-O {[%clk 0:03:03.3]} 9... b6 {[%clk
0:02:20.6]} 10. Be3 {[%clk 0:03:02.1]} 10... e6 {[%clk 0:02:17.9]} 11. Rc1
{[%clk 0:02:52.6]} 11... Bb7 {[%clk 0:02:15.3]} 12. Qc2 {[%clk 0:02:51.7]} 12...
Nd7 {[%clk 0:02:02.1]} 13. Rfd1 {[%clk 0:02:50.5]} 13... cxd4 {[%clk 0:01:57.7]}
14. cxd4 {[%clk 0:02:50.3]} 14... Rc8 {[%clk 0:01:58]} 15. Qb1 {[%clk
0:02:48.8]} 15... Rxc1 {[%clk 0:01:57.7]} 16. Rxc1 {[%clk 0:02:49.7]} 16... Qa8
{[%clk 0:01:57.7]} 17. Bd3 {[%clk 0:02:44.4]} 17... Nf6 {[%clk 0:01:52.9]} 18.
Nd2 {[%clk 0:02:40.5]} 18... Ng4 {[%clk 0:01:52.7]} 19. Rc7 {[%clk 0:02:32.5]}
19... Rd8 {[%clk 0:01:37.8]} 20. Nf3 {[%clk 0:02:17.5]} 20... Nxe3 {[%clk
0:01:26.1]} 21. fxe3 {[%clk 0:02:15]} 21... Bh6 {[%clk 0:01:26.7]} 22. Kf2
{[%clk 0:02:09.8]} 22... Rc8 {[%clk 0:01:16.2]} 23. Qc2 {[%clk 0:02:07.1]} 23...
Qb8 {[%clk 0:01:13.9]} 24. Rxc8+ {[%clk 0:02:05.6]} 24... Qxc8 {[%clk
0:01:14.8]} 25. Qxc8+ {[%clk 0:02:04.5]} 25... Bxc8 {[%clk 0:01:15.7]} 26. Ne5
{[%clk 0:02:03.9]} 26... Bb7 {[%clk 0:01:09.8]} 27. Kf3 {[%clk 0:01:56.3]} 27...
Kf8 {[%clk 0:01:07.3]} 28. Ke2 {[%clk 0:01:53]} 28... Ke7 {[%clk 0:01:06.4]} 29.
g3 {[%clk 0:01:52.7]} 29... f6 {[%clk 0:01:03.1]} 30. Ng4 {[%clk 0:01:51.8]}
30... Bg7 {[%clk 0:01:02.6]} 31. Nf2 {[%clk 0:01:50]} 31... e5 {[%clk
0:00:55.2]} 32. Bc4 {[%clk 0:01:46.3]} 32... h5 {[%clk 0:00:41.1]} 33. Kd3
{[%clk 0:01:44.9]} 33... f5 {[%clk 0:00:34]} 34. exf5 {[%clk 0:01:05.6]} 34...
gxf5 {[%clk 0:00:34.9]} 35. dxe5 {[%clk 0:01:05.8]} 35... Bxe5 {[%clk
0:00:31.8]} 36. Nh3 {[%clk 0:01:06.4]} 36... Be4+ {[%clk 0:00:28.1]} 37. Kd2
{[%clk 0:01:05.4]} 37... h4 {[%clk 0:00:26]} 38. gxh4 {[%clk 0:01:03.5]} 38...
Bxh2 {[%clk 0:00:25]} 39. Nf4 {[%clk 0:01:04]} 39... Bg3 {[%clk 0:00:18.3]} 40.
Bd3 {[%clk 0:00:57.8]} 40... Kf6 {[%clk 0:00:17.4]} 41. Nh5+ {[%clk 0:00:56]}
1-0

[Event "Early-Titled-Tuesday-Blitz-July-09-2024"]
[Site "Chess.com"]
[Date "2024.07.09"]
[Round "4"]
[White "Arteler"]
[Black "dretch"]
[Result "1/2-1/2"]
[WhiteElo "2295"]
[BlackElo "2878"]
[TimeControl "180+1"]
[EndTime "8:39:13 PDT"]
[Termination "Game drawn by repetition"]

1. e4 {[%clk 0:03:00.9]} 1... e6 {[%clk 0:03:00.1]} 2. d4 {[%clk 0:03:00.6]}
2... d5 {[%clk 0:03:00.5]} 3. Nd2 {[%clk 0:03:01.1]} 3... c5 {[%clk 0:02:57]} 4.
exd5 {[%clk 0:03:00.4]} 4... Qxd5 {[%clk 0:02:57]} 5. Ngf3 {[%clk 0:02:59.2]}
5... cxd4 {[%clk 0:02:57.3]} 6. Bc4 {[%clk 0:02:59.6]} 6... Qd6 {[%clk
0:02:57.4]} 7. O-O {[%clk 0:03:00.2]} 7... Nf6 {[%clk 0:02:57.9]} 8. Nb3 {[%clk
0:03:00.5]} 8... Nc6 {[%clk 0:02:58.4]} 9. Nbxd4 {[%clk 0:03:00.9]} 9... Nxd4
{[%clk 0:02:59]} 10. Nxd4 {[%clk 0:03:01]} 10... a6 {[%clk 0:02:59.6]} 11. c3
{[%clk 0:02:51]} 11... Be7 {[%clk 0:02:55.9]} 12. Bb3 {[%clk 0:02:41.2]} 12...
O-O {[%clk 0:02:54.4]} 13. Qf3 {[%clk 0:02:40.1]} 13... Qc5 {[%clk 0:02:44.5]}
14. Be3 {[%clk 0:02:30.6]} 14... Qh5 {[%clk 0:02:43.9]} 15. Qg3 {[%clk
0:02:22.5]} 15... Ne4 {[%clk 0:02:30.6]} 16. Qf3 {[%clk 0:02:15.7]} 16... Qxf3
{[%clk 0:02:30.2]} 17. Nxf3 {[%clk 0:02:16.5]} 17... Rd8 {[%clk 0:02:27]} 18.
Rfd1 {[%clk 0:02:16.5]} 18... b5 {[%clk 0:02:12.8]} 19. Rxd8+ {[%clk 0:02:09.3]}
19... Bxd8 {[%clk 0:02:12.5]} 20. Rd1 {[%clk 0:02:10]} 20... Bb7 {[%clk
0:02:03.6]} 21. Ne5 {[%clk 0:02:06.4]} 21... Nf6 {[%clk 0:02:04]} 22. Bg5 {[%clk
0:02:02]} 22... h6 {[%clk 0:01:46.4]} 23. Bxf6 {[%clk 0:02:01.1]} 23... Bxf6
{[%clk 0:01:46.5]} 24. Nxf7 {[%clk 0:02:00.9]} 24... Kxf7 {[%clk 0:00:56.8]} 25.
Rd7+ {[%clk 0:02:00.5]} 25... Kf8 {[%clk 0:00:57]} 26. Rxb7 {[%clk 0:02:01.1]}
26... Rd8 {[%clk 0:00:57.2]} 27. g3 {[%clk 0:01:47.6]} 27... Rd2 {[%clk
0:00:54.1]} 28. Bxe6 {[%clk 0:01:47.3]} 28... Rxb2 {[%clk 0:00:51.9]} 29. c4
{[%clk 0:01:47.8]} 29... Rxa2 {[%clk 0:00:32.6]} 30. cxb5 {[%clk 0:01:45.6]}
30... Ra1+ {[%clk 0:00:32.3]} 31. Kg2 {[%clk 0:01:46.1]} 31... axb5 {[%clk
0:00:32.6]} 32. Rxb5 {[%clk 0:01:46.2]} 32... Ke7 {[%clk 0:00:30]} 33. Bd5
{[%clk 0:01:42.8]} 33... Kd6 {[%clk 0:00:29.5]} 34. h4 {[%clk 0:01:40.5]} 34...
Rd1 {[%clk 0:00:25.1]} 35. Be4 {[%clk 0:01:29.6]} 35... Rd2 {[%clk 0:00:25]} 36.
Rf5 {[%clk 0:01:19.9]} 36... Ke6 {[%clk 0:00:23.4]} 37. Rf3 {[%clk 0:01:17.1]}
37... Bd4 {[%clk 0:00:22.4]} 38. Bg6 {[%clk 0:01:17]} 38... Ke7 {[%clk
0:00:21.5]} 39. Rf7+ {[%clk 0:01:16.6]} 39... Ke6 {[%clk 0:00:21.6]} 40. Rf3
{[%clk 0:01:17.5]} 40... Kd6 {[%clk 0:00:20.4]} 41. g4 {[%clk 0:01:18.1]} 41...
Bf6 {[%clk 0:00:17.9]} 42. Kg3 {[%clk 0:01:17]} 42... Be5+ {[%clk 0:00:17]} 43.
Kh3 {[%clk 0:01:17.7]} 43... Bd4 {[%clk 0:00:15.8]} 44. Kg2 {[%clk 0:01:14.1]}
44... Bf6 {[%clk 0:00:15.7]} 45. Kh3 {[%clk 0:01:00.6]} 45... Bd4 {[%clk
0:00:14.9]} 46. Kg2 {[%clk 0:00:52.4]} 1/2-1/2

[Event "Early-Titled-Tuesday-Blitz-July-09-2024"]
[Site "Chess.com"]
[Date "2024.07.09"]
[Round "4"]
[White "Statham_01"]
[Black "Kombinator01"]
[Result "0-1"]
[WhiteElo "2652"]
[BlackElo "2433"]
[TimeControl "180+1"]
[EndTime "8:39:13 PDT"]
[Termination "Kombinator01 won on time"]

1. e4 {[%clk 0:03:00.9]} 1... e5 {[%clk 0:02:58.3]} 2. Nf3 {[%clk 0:03:00.9]}
2... Nc6 {[%clk 0:02:57.3]} 3. Nc3 {[%clk 0:02:58.8]} 3... Nf6 {[%clk 0:02:57]}
4. d4 {[%clk 0:02:57.4]} 4... Bb4 {[%clk 0:02:55.9]} 5. Nxe5 {[%clk 0:02:54.3]}
5... Nxe4 {[%clk 0:02:54.6]} 6. Qg4 {[%clk 0:02:47.5]} 6... Nxc3 {[%clk
0:02:49.6]} 7. Qxg7 {[%clk 0:02:44]} 7... Rf8 {[%clk 0:02:48.2]} 8. Bd2 {[%clk
0:02:24.9]} 8... Nxd4 {[%clk 0:02:39.5]} 9. Bxc3 {[%clk 0:02:09.8]} 9... Bxc3+
{[%clk 0:02:38.2]} 10. bxc3 {[%clk 0:01:56.7]} 10... Nf5 {[%clk 0:01:55.2]} 11.
Qxh7 {[%clk 0:01:42.2]} 11... Qf6 {[%clk 0:01:53.1]} 12. Bc4 {[%clk 0:00:52.5]}
12... Qxe5+ {[%clk 0:01:45.2]} 13. Kf1 {[%clk 0:00:52.9]} 13... Qf6 {[%clk
0:01:18.2]} 14. Re1+ {[%clk 0:00:52.2]} 14... Kd8 {[%clk 0:01:18.5]} 15. g4
{[%clk 0:00:43.6]} 15... Nd6 {[%clk 0:01:14.2]} 16. Qd3 {[%clk 0:00:24.8]} 16...
Nxc4 {[%clk 0:01:09.7]} 17. Qxc4 {[%clk 0:00:24.7]} 17... b5 {[%clk 0:01:05]}
18. Qe4 {[%clk 0:00:20.4]} 18... Rb8 {[%clk 0:01:00.6]} 19. g5 {[%clk
0:00:15.6]} 19... Qxg5 {[%clk 0:00:58.2]} 20. Rg1 {[%clk 0:00:14.7]} 20... Qf6
{[%clk 0:00:58.2]} 21. Rg4 {[%clk 0:00:04.7]} 21... c5 {[%clk 0:00:52.3]} 22.
Rf4 {[%clk 0:00:04.7]} 22... Qd6 {[%clk 0:00:50.5]} 23. Rf5 {[%clk 0:00:03.1]}
23... Bb7 {[%clk 0:00:49]} 24. Qh4+ {[%clk 0:00:03.8]} 24... Kc7 {[%clk
0:00:48.6]} 25. Qg5 {[%clk 0:00:04.1]} 25... Rg8 {[%clk 0:00:43.3]} 26. Rxc5+
{[%clk 0:00:03.5]} 26... Bc6 {[%clk 0:00:44]} 27. Qe3 {[%clk 0:00:02.7]} 27...
Rbe8 {[%clk 0:00:41]} 28. Re5 {[%clk 0:00:01.7]} 28... Bg2+ {[%clk 0:00:38.6]}
29. Kg1 {[%clk 0:00:01.6]} 29... Bh3+ {[%clk 0:00:34.3]} 0-1

[Event "Early-Titled-Tuesday-Blitz-July-09-2024"]
[Site "Chess.com"]
[Date "2024.07.09"]
[Round "4"]
[White "EdenDzung06"]
[Black "karinachess1"]
[Result "0-1"]
[WhiteElo "2464"]
[BlackElo "2691"]
[TimeControl "180+1"]
[EndTime "8:39:15 PDT"]
[Termination "karinachess1 won by checkmate"]

1. d4 {[%clk 0:03:00.9]} 1... Nf6 {[%clk 0:02:59.7]} 2. c4 {[%clk 0:03:01.6]}
2... e6 {[%clk 0:03:00]} 3. Nf3 {[%clk 0:02:59.7]} 3... d5 {[%clk 0:03:00]} 4.
g3 {[%clk 0:02:59.9]} 4... dxc4 {[%clk 0:02:59.1]} 5. Bg2 {[%clk 0:02:59.7]}
5... Nc6 {[%clk 0:02:59.8]} 6. O-O {[%clk 0:02:58.7]} 6... Rb8 {[%clk
0:02:58.9]} 7. a4 {[%clk 0:02:57.6]} 7... a6 {[%clk 0:02:57.3]} 8. b3 {[%clk
0:02:30.9]} 8... cxb3 {[%clk 0:02:50.4]} 9. Qxb3 {[%clk 0:02:31.8]} 9... Nxd4
{[%clk 0:02:48.1]} 10. Nxd4 {[%clk 0:02:27.4]} 10... Qxd4 {[%clk 0:02:49]} 11.
Bb2 {[%clk 0:02:28]} 11... Qb6 {[%clk 0:02:33.4]} 12. Qc2 {[%clk 0:02:05.1]}
12... Bc5 {[%clk 0:02:31.9]} 13. a5 {[%clk 0:02:00]} 13... Qd6 {[%clk
0:02:19.7]} 14. Rd1 {[%clk 0:01:54.3]} 14... Qe7 {[%clk 0:02:19.6]} 15. Nc3
{[%clk 0:01:37.5]} 15... O-O {[%clk 0:02:14.6]} 16. Rac1 {[%clk 0:01:32.1]}
16... b6 {[%clk 0:02:04.6]} 17. Ne4 {[%clk 0:01:26.2]} 17... Nxe4 {[%clk
0:02:03.1]} 18. Bxe4 {[%clk 0:01:27.1]} 18... f5 {[%clk 0:02:03.2]} 19. Bf3
{[%clk 0:01:21.3]} 19... Bb7 {[%clk 0:01:57.2]} 20. Bxb7 {[%clk 0:01:19.3]}
20... Rxb7 {[%clk 0:01:58.1]} 21. Rd2 {[%clk 0:01:13.2]} 21... Rbb8 {[%clk
0:01:55.6]} 22. Rcd1 {[%clk 0:01:11.1]} 22... Rbd8 {[%clk 0:01:55.8]} 23. Qc3
{[%clk 0:01:04.3]} 23... Rxd2 {[%clk 0:01:44.7]} 24. Rxd2 {[%clk 0:01:05.2]}
24... Bb4 {[%clk 0:01:40.3]} 25. Qd3 {[%clk 0:00:37.5]} 25... Bxd2 {[%clk
0:01:39.7]} 26. Qxd2 {[%clk 0:00:38.4]} 26... Qd6 {[%clk 0:01:25.8]} 27. Qc3
{[%clk 0:00:36.8]} 27... Rf7 {[%clk 0:01:23.8]} 28. axb6 {[%clk 0:00:35.3]}
28... Qxb6 {[%clk 0:01:18.5]} 29. h4 {[%clk 0:00:32.2]} 29... h6 {[%clk
0:01:18.1]} 30. Kg2 {[%clk 0:00:26.3]} 30... a5 {[%clk 0:01:18.1]} 31. Ba3
{[%clk 0:00:22.7]} 31... a4 {[%clk 0:01:16.3]} 32. h5 {[%clk 0:00:20.3]} 32...
Qb3 {[%clk 0:01:10.8]} 33. Qc5 {[%clk 0:00:20.4]} 33... Qd5+ {[%clk 0:01:09.5]}
34. Qxd5 {[%clk 0:00:18]} 34... exd5 {[%clk 0:01:10.4]} 35. Kf3 {[%clk
0:00:18.4]} 35... Rf6 {[%clk 0:01:08.8]} 36. Ke3 {[%clk 0:00:18.1]} 36... Rb6
{[%clk 0:01:09.3]} 37. Kd4 {[%clk 0:00:17.9]} 37... Rb3 {[%clk 0:01:09.5]} 38.
Bc5 {[%clk 0:00:17.9]} 38... a3 {[%clk 0:01:09.9]} 39. Bxa3 {[%clk 0:00:18.5]}
39... Rxa3 {[%clk 0:01:10]} 40. e4 {[%clk 0:00:18.1]} 40... dxe4 {[%clk
0:01:09.5]} 41. Ke5 {[%clk 0:00:19]} 41... Rf3 {[%clk 0:01:09]} 42. Ke6 {[%clk
0:00:19]} 42... Rxf2 {[%clk 0:01:09.2]} 43. Ke5 {[%clk 0:00:19.9]} 43... e3
{[%clk 0:01:09.5]} 44. g4 {[%clk 0:00:19.7]} 44... fxg4 {[%clk 0:01:09]} 45. Kd4
{[%clk 0:00:19.4]} 45... e2 {[%clk 0:01:09]} 46. Kd3 {[%clk 0:00:20.3]} 46...
e1=Q {[%clk 0:01:08.7]} 47. Kc4 {[%clk 0:00:20.6]} 47... Qe4+ {[%clk 0:01:08.5]}
48. Kb3 {[%clk 0:00:21.5]} 48... Rf3+ {[%clk 0:01:07.5]} 49. Kb2 {[%clk
0:00:21.1]} 49... Qe2+ {[%clk 0:01:08.4]} 50. Kc1 {[%clk 0:00:22]} 50... Rf1#
{[%clk 0:01:09.3]} 0-1

[Event "Early-Titled-Tuesday-Blitz-July-09-2024"]
[Site "Chess.com"]
[Date "2024.07.09"]
[Round "4"]
[White "talaicito"]
[Black "cmunda"]
[Result "0-1"]
[WhiteElo "2337"]
[BlackElo "2099"]
[TimeControl "180+1"]
[EndTime "8:39:15 PDT"]
[Termination "cmunda won on time"]

1. d4 {[%clk 0:03:00.9]} 1... e6 {[%clk 0:02:59.6]} 2. e4 {[%clk 0:02:59.9]}
2... b5 {[%clk 0:02:57.9]} 3. Bxb5 {[%clk 0:02:57]} 3... Bb7 {[%clk 0:02:58.8]}
4. Bd3 {[%clk 0:02:56.7]} 4... g6 {[%clk 0:02:57.5]} 5. Nf3 {[%clk 0:02:55.6]}
5... Bg7 {[%clk 0:02:57.6]} 6. O-O {[%clk 0:02:55.9]} 6... Ne7 {[%clk
0:02:57.8]} 7. c3 {[%clk 0:02:55.2]} 7... d6 {[%clk 0:02:58.1]} 8. Re1 {[%clk
0:02:51.2]} 8... O-O {[%clk 0:02:57.8]} 9. Bg5 {[%clk 0:02:46]} 9... h6 {[%clk
0:02:57.3]} 10. Be3 {[%clk 0:02:34.9]} 10... Nd7 {[%clk 0:02:57.1]} 11. Nbd2
{[%clk 0:02:31]} 11... a5 {[%clk 0:02:56.9]} 12. Nc4 {[%clk 0:02:27.6]} 12... a4
{[%clk 0:02:55.5]} 13. b3 {[%clk 0:02:26.1]} 13... Nb6 {[%clk 0:02:47.8]} 14.
Nxb6 {[%clk 0:02:22.1]} 14... cxb6 {[%clk 0:02:47.8]} 15. bxa4 {[%clk
0:02:20.9]} 15... Bc6 {[%clk 0:02:47.6]} 16. Nd2 {[%clk 0:01:59.6]} 16... Rxa4
{[%clk 0:02:36]} 17. Qc1 {[%clk 0:01:48.1]} 17... Kh7 {[%clk 0:02:33.8]} 18. Re2
{[%clk 0:01:41.8]} 18... b5 {[%clk 0:02:30.3]} 19. Qb2 {[%clk 0:01:38.9]} 19...
Qa5 {[%clk 0:02:23]} 20. Bc2 {[%clk 0:01:22.8]} 20... Ra3 {[%clk 0:02:15.9]} 21.
Nb3 {[%clk 0:01:22.3]} 21... Qa6 {[%clk 0:02:13.8]} 22. Bd3 {[%clk 0:01:06]}
22... Ra8 {[%clk 0:02:12.8]} 23. h4 {[%clk 0:01:06.5]} 23... h5 {[%clk
0:02:10.7]} 24. e5 {[%clk 0:00:57.9]} 24... dxe5 {[%clk 0:02:04.7]} 25. dxe5
{[%clk 0:00:56.9]} 25... Bd5 {[%clk 0:01:43]} 26. Nc5 {[%clk 0:00:35.1]} 26...
Qa5 {[%clk 0:01:33.2]} 27. Qxb5 {[%clk 0:00:27]} 27... Qxc3 {[%clk 0:01:29]} 28.
Rc1 {[%clk 0:00:23.4]} 28... Qa5 {[%clk 0:01:13]} 29. Qxa5 {[%clk 0:00:13.4]}
29... R3xa5 {[%clk 0:01:12.9]} 30. a4 {[%clk 0:00:10.9]} 30... Nc6 {[%clk
0:01:09.5]} 31. Bb5 {[%clk 0:00:09.6]} 31... Nxe5 {[%clk 0:01:06.8]} 32. Bd4
{[%clk 0:00:09.7]} 32... Ng4 {[%clk 0:00:58.4]} 33. Bxg7 {[%clk 0:00:07.8]}
33... Kxg7 {[%clk 0:00:58.4]} 34. Nd7 {[%clk 0:00:06.6]} 34... Nf6 {[%clk
0:00:51]} 35. Nxf6 {[%clk 0:00:02.9]} 35... Kxf6 {[%clk 0:00:51.9]} 36. Rc7
{[%clk 0:00:02.8]} 36... Bb3 {[%clk 0:00:46.7]} 0-1

[Event "Early-Titled-Tuesday-Blitz-July-09-2024"]
[Site "Chess.com"]
[Date "2024.07.09"]
[Round "4"]
[White "yaguigor"]
[Black "Shankland"]
[Result "0-1"]
[WhiteElo "2597"]
[BlackElo "2879"]
[TimeControl "180+1"]
[EndTime "8:39:16 PDT"]
[Termination "Shankland won on time"]

1. e4 {[%clk 0:02:55.9]} 1... c6 {[%clk 0:02:57.6]} 2. d4 {[%clk 0:02:54.9]}
2... d5 {[%clk 0:02:58.1]} 3. e5 {[%clk 0:02:55.5]} 3... Bf5 {[%clk 0:02:57.8]}
4. h4 {[%clk 0:02:55]} 4... h6 {[%clk 0:02:56.8]} 5. Bd3 {[%clk 0:02:48.5]} 5...
Bxd3 {[%clk 0:02:55.7]} 6. cxd3 {[%clk 0:02:49.1]} 6... e6 {[%clk 0:02:56.2]} 7.
Nc3 {[%clk 0:02:45]} 7... Ne7 {[%clk 0:02:51.5]} 8. h5 {[%clk 0:02:41.6]} 8...
Nf5 {[%clk 0:02:38.4]} 9. Nf3 {[%clk 0:02:32.4]} 9... c5 {[%clk 0:02:38.2]} 10.
dxc5 {[%clk 0:02:29.2]} 10... Bxc5 {[%clk 0:02:38.3]} 11. d4 {[%clk 0:02:29.8]}
11... Bb6 {[%clk 0:02:38.3]} 12. g4 {[%clk 0:02:24.1]} 12... Ne7 {[%clk
0:02:38.5]} 13. Nb5 {[%clk 0:01:55.5]} 13... O-O {[%clk 0:02:37.1]} 14. Nd6
{[%clk 0:01:51.4]} 14... Nbc6 {[%clk 0:02:34.4]} 15. g5 {[%clk 0:01:50.6]} 15...
hxg5 {[%clk 0:02:20.4]} 16. Bxg5 {[%clk 0:01:49]} 16... f6 {[%clk 0:02:17.9]}
17. exf6 {[%clk 0:00:39.4]} 17... Qxd6 {[%clk 0:02:16.2]} 18. fxe7 {[%clk
0:00:38.5]} 18... Nxe7 {[%clk 0:02:12.2]} 19. h6 {[%clk 0:00:33.4]} 19... g6
{[%clk 0:02:10.9]} 20. Bxe7 {[%clk 0:00:20.3]} 20... Qxe7 {[%clk 0:02:10.4]} 21.
Qe2 {[%clk 0:00:21]} 21... Qf6 {[%clk 0:02:06.9]} 22. Rh3 {[%clk 0:00:19.3]}
22... Kh7 {[%clk 0:01:58.6]} 23. Kf1 {[%clk 0:00:17.5]} 23... Bxd4 {[%clk
0:01:54.3]} 24. Nxd4 {[%clk 0:00:15.7]} 24... Qxd4 {[%clk 0:01:53.8]} 25. Rd1
{[%clk 0:00:15.1]} 25... Rxf2+ {[%clk 0:01:53.7]} 26. Qxf2 {[%clk 0:00:14.5]}
26... Qxd1+ {[%clk 0:01:53.9]} 27. Kg2 {[%clk 0:00:15.1]} 27... Qg4+ {[%clk
0:01:54.1]} 28. Rg3 {[%clk 0:00:15.1]} 28... Qe4+ {[%clk 0:01:52.3]} 29. Kh2
{[%clk 0:00:15.2]} 29... Qf5 {[%clk 0:01:51.2]} 30. Rf3 {[%clk 0:00:14.5]} 30...
Qe5+ {[%clk 0:01:49.1]} 31. Kg2 {[%clk 0:00:11.3]} 31... Rc8 {[%clk 0:01:37.9]}
32. Rf7+ {[%clk 0:00:08.4]} 32... Kg8 {[%clk 0:01:38.2]} 33. h7+ {[%clk
0:00:07.6]} 33... Kh8 {[%clk 0:01:38.4]} 34. Kh3 {[%clk 0:00:04.8]} 34... Qh5+
{[%clk 0:01:33.3]} 35. Kg2 {[%clk 0:00:04.6]} 35... Qg4+ {[%clk 0:01:25.6]} 36.
Kh2 {[%clk 0:00:03.6]} 36... Qh5+ {[%clk 0:01:24.8]} 37. Kg2 {[%clk 0:00:03.7]}
37... Qg5+ {[%clk 0:01:24.9]} 38. Kh2 {[%clk 0:00:04]} 38... Qe5+ {[%clk
0:01:23.9]} 39. Kh3 {[%clk 0:00:03.8]} 39... d4 {[%clk 0:01:19.5]} 40. Rxb7
{[%clk 0:00:01.1]} 40... Qf5+ {[%clk 0:01:16.5]} 41. Kg3 {[%clk 0:00:01.6]}
41... e5 {[%clk 0:00:57]} 0-1